fUSD/lending_fUSD_20251123
["ID","MTS","AMOUNT","RATE_DAILY","PERIOD"]
[394775189,1763935850947,-500.0,0.00040995,8]
[394775190,1763935850961,-500.0,0.00040995,8]
[394775191,1763935850971,-500.0,0.00040995,8]
[394775192,1763935850981,-500.0,0.00040995,8]
[394775193,1763935850991,-150.0,0.00040996,2]
[394775194,1763935851002,-1320.0,0.00040996,2]
[394775195,1763935851013,-231.28369723,0.00040998,30]
[394775196,1763935851022,-1000.0,0.00040999,120]
[394775197,1763935851030,-288.1933706,0.00040999,2]
[394775198,1763935851038,-165.6579438,0.00040999,2]
[394775199,1763935851047,-500.0,0.00040999,8]
[394775200,1763935851057,-300.0,0.00040999,10]
[394775201,1763935851066,-300.0,0.00040999,10]
[394775202,1763935851075,-666.0,0.00040999,30]
[394775203,1763935851084,-300.0,0.00040999,10]
[394775204,1763935851093,-629.24326679,0.00040999,30]
[394775205,1763935851102,-186.11017131,0.00041,6]
[394775206,1763935851111,-163.82453999,0.00041,31]
[394775207,1763935851120,-26401.3983597,0.00041,2]
[394775208,1763935851133,-5824.49931706,0.00041,2]
[394775209,1763935851144,-533.76,0.00041,2]
[394775232,1763936645482,195.0,0.00020683,120]
[394775233,1763936645580,195.0,0.00021153,120]
[394775238,1763936746318,-158.69,0.00018803,2]
[394775240,1763936794726,-340.0,0.000199,3]
[394775243,1763936820068,423.71216559,0.000153,2]
[394775284,1763936883564,-701.24528471,0.00017,2]
[394775285,1763936885240,-340.0,0.00017,2]
[394775287,1763937031607,-1200.0,0.00016998,2]
[394775288,1763937031617,-300.0,0.00016998,2]
[394775289,1763937031629,-300.0,0.00016998,2]
[394775292,1763937031638,-550.0,0.00016998,2]
[394775294,1763937031648,-1218.45664032,0.00016999,5]
[394775296,1763937031657,-175.29172354,0.00016999,2]
[394775298,1763937031666,-500.0,0.00016999,2]
[394775299,1763937031675,-500.0,0.00016999,2]
[394775300,1763937031684,-500.0,0.00016999,2]
[394775301,1763937031694,-500.0,0.00016999,2]
[394775302,1763937031705,-500.0,0.00016999,2]
[394775303,1763937031715,-500.0,0.00016999,2]
[394775304,1763937031727,-500.0,0.00016999,2]
[394775305,1763937031737,-500.0,0.00016999,2]
[394775306,1763937031746,-618.85393504,0.00016999,2]
[394775307,1763937031756,-500.0,0.00016999,2]
[394775308,1763937031765,-500.0,0.00016999,2]
[394775309,1763937031775,-500.0,0.00016999,2]
[394775310,1763937031784,-500.0,0.00016999,2]
[394775311,1763937031793,-500.0,0.00016999,2]
[394775312,1763937031802,-500.0,0.00016999,2]
[394775313,1763937031811,-500.0,0.00016999,2]
[394775314,1763937031820,-114.83656404,0.00016999,2]
[394775315,1763937031831,-385.16343596,0.00016999,2]
[394775316,1763937031840,-500.0,0.00016999,2]
[394775317,1763937031851,-500.0,0.00016999,2]
[394775318,1763937031860,-281.71863238,0.00016999,2]
[394775319,1763937031871,-218.28136762,0.00016999,2]
[394775320,1763937031880,-500.0,0.00016999,2]
[394775321,1763937031889,-284.17382291,0.00017,2]
[394775322,1763937031900,-999.0,0.00017,2]
[394775872,1763937037574,-1030.04000014,0.00017,2]
[394775878,1763937037632,-1109.46875634,0.00017,2]
[394775895,1763937037830,-8480.38968645,0.00017,2]
[394775898,1763937037845,-476771.08243768,0.00017,2]
[394775900,1763937037856,-162.97117024,0.000174,2]
[394775902,1763937037865,-218.28985519,0.000175,2]
[394775904,1763937037873,-169.04924628,0.000176,2]
[394775906,1763937037883,-403.0,0.000177,5]
[394775908,1763937037892,-1181.78229963,0.00018,2]
[394775910,1763937037901,-1766.41985469,0.000181,2]
[394775912,1763937037911,-935.0,0.00018103,2]
[394775914,1763937037920,-420.0,0.00018566,2]
[394775916,1763937037929,-420.0,0.00018566,2]
[394775918,1763937037939,-1680.0,0.00018658,2]
[394775920,1763937037948,-5131.73210156,0.00019,2]
[394775922,1763937037957,-1852.42,0.00019151,2]
[394775924,1763937037966,-189.0,0.00019276,2]
[394775926,1763937037975,-4546.35865305,0.000199,3]
[394775928,1763937037984,-1085.1018,0.00019945,2]
[394775930,1763937037993,-830.0,0.00019949,2]
[394775932,1763937038002,-109930.27607871,0.0001995,15]
[394775934,1763937038012,-36476.35151658,0.0001995,2]
[394775936,1763937038021,-292.18778882,0.00019973,2]
[394775938,1763937038030,-500.0,0.00019973,2]
[394775940,1763937038040,-500.0,0.00019973,2]
[394775942,1763937038049,-500.0,0.00019973,2]
[394775944,1763937038058,-500.0,0.00019973,2]
[394775946,1763937038067,-500.87773051,0.00019973,2]
[394775948,1763937038077,-500.0,0.00019973,2]
[394775950,1763937038087,-275.15105889,0.00019973,2]
[394775952,1763937038098,-240.69750661,0.00019999,2]
[394775954,1763937038109,-500.0,0.00019999,2]
[394775956,1763937038118,-200.58349225,0.00019999,2]
[394775958,1763937038129,-500.0,0.00019999,2]
[394775960,1763937038138,-339.45461618,0.00019999,2]
[394775962,1763937038148,-301.78508047,0.00019999,2]
[394775964,1763937038157,-2561.18038953,0.0002,2]
[394775966,1763937038168,-1522.78558692,0.0002,2]
[394775968,1763937038177,-864.56514213,0.0002,5]
[394775970,1763937038187,-25421.15417725,0.0002,2]
[394775972,1763937038195,-81353.21349999,0.0002,5]
[394775974,1763937038204,-3950.0,0.0002,2]
[394775976,1763937038213,-7240.98882231,0.0002,2]
[394775978,1763937038222,-1285.80214279,0.0002,2]
[394775980,1763937038232,-1037.85154712,0.0002,2]
[394775982,1763937038244,-2844.11982945,0.0002,2]
[394775984,1763937038254,-413.8927255,0.0002,2]
[394775986,1763937038264,-12837.41450536,0.0002,2]
[394775988,1763937038273,-1046.72385357,0.0002,2]
[394775990,1763937038283,-8720.0,0.0002001,2]
[394775992,1763937038292,-587.0,0.00020278,2]
[394775994,1763937038302,-587.0,0.00020278,2]
[394775996,1763937038312,-2162.0,0.0002048,2]
[394775998,1763937038321,-1000.0,0.00020521,2]
[394776000,1763937038331,-1000.0,0.00020521,2]
[394776002,1763937038341,-500.000001,0.00020521,2]
[394776004,1763937038350,-500.0,0.00020521,2]
[394776006,1763937038362,-22508.22364931,0.000207,2]
[394776008,1763937038373,-280.46189862,0.00021068,2]
[394776010,1763937038383,-1500.0,0.00021068,2]
[394776012,1763937038393,-403.0,0.00022148,2]
[394776014,1763937038403,-300.0,0.00022319,2]
[394776016,1763937038413,-250.0,0.00022461,2]
[394776018,1763937038422,-158.69,0.00023504,2]
[394776020,1763937038431,-500.0,0.00024773,2]
[394776022,1763937038441,-500.0,0.00024773,2]
[394776024,1763937038450,-500.0,0.00024773,2]
[394776026,1763937038459,-500.0,0.00024773,2]
[394776028,1763937038469,-500.0,0.00024773,2]
[394776030,1763937038478,-326.52315615,0.00024773,2]
[394776032,1763937038487,-500.0,0.00024773,2]
[394776034,1763937038497,-500.0,0.00024773,2]
[394776036,1763937038509,-500.0,0.00024773,2]
[394776038,1763937038518,-500.0,0.00024773,2]
[394776039,1763937038527,-500.0,0.00024773,2]
[394776042,1763937038536,-500.0,0.00024773,2]
[394776043,1763937038546,-500.0,0.00024773,2]
[394776045,1763937038555,-500.0,0.00024773,2]
[394776047,1763937038564,-164.12207296,0.00024773,2]
[394776049,1763937038573,-500.0,0.00024773,2]
[394776051,1763937038582,-500.86714975,0.00024773,2]
[394776053,1763937038592,-500.0,0.00024773,2]
[394776055,1763937038601,-500.0,0.00024773,2]
[394776057,1763937038610,-162.92450325,0.00024773,2]
[394776059,1763937038620,-500.0,0.00024773,2]
[394776061,1763937038629,-500.0,0.00024773,2]
[394776063,1763937038639,-500.0,0.00024773,2]
[394776065,1763937038648,-225300.634992,0.000248,3]
[394776067,1763937038658,-151.0,0.000248,7]
[394776069,1763937038667,-165.687197,0.000248,7]
[394776071,1763937038677,-151.0,0.000248,7]
[394776073,1763937038687,-151.0,0.000248,7]
[394776076,1763937038696,-255.917737,0.000248,7]
[394776078,1763937038705,-151.0,0.000248,7]
[394776080,1763937038715,-498.95764127,0.00025321,2]
[394776082,1763937038724,-812.5306204,0.00025321,2]
[394776084,1763937038733,-1000.0,0.00025321,2]
[394776086,1763937038742,-366.28624728,0.00025321,2]
[394776088,1763937038752,-1000.0,0.00025321,2]
[394776090,1763937038761,-1005.67181755,0.00025321,2]
[394776091,1763937038770,-413.58495286,0.00025321,2]
[394776094,1763937038780,-785.47193993,0.00025321,2]
[394776096,1763937038789,-500.0,0.00025321,2]
[394776098,1763937038798,-500.0,0.00025321,2]
[394776100,1763937038807,-1000.0,0.00025321,2]
[394776102,1763937038817,-500.0,0.00025868,2]
[394776104,1763937038827,-4226.88,0.00028,2]
[394776106,1763937038837,-206.32,0.00028,7]
[394776108,1763937038846,-158.69,0.00028204,2]
[394776110,1763937038860,-162.97117022,0.0002915,15]
[394776111,1763937038870,-194.29453246,0.00030423,2]
[394776113,1763937038879,-158.69,0.00032905,2]
[394776115,1763937038889,-1000.0,0.00033042,3]
[394776117,1763937038898,-999.0,0.00034821,3]
[394776119,1763937038907,-1000.0,0.00035741,3]
[394776121,1763937038917,-426.78462315,0.00037237,2]
[394776123,1763937038926,-1938.49,0.00037465,2]
[394776125,1763937038937,-200.0,0.0003759,2]
[394776128,1763937038946,-158.69,0.00037606,2]
[394776130,1763937038956,-201.02,0.0003764,2]
[394776132,1763937038966,-57572.19,0.00037643,10]
[394776134,1763937038975,-1000.0,0.00037672,2]
[394776136,1763937038984,-206.32,0.000377,14]
[394776138,1763937038994,-1000.0,0.00037764,3]
[394776140,1763937039003,-1052.33,0.00037886,120]
[394776142,1763937039012,-5000.0,0.00037901,2]
[394776144,1763937039022,-1000.0,0.00037913,2]
[394776146,1763937039031,-199.92528655,0.00037947,2]
[394776147,1763937039040,-150.55,0.00037947,2]
[394776149,1763937039049,-2751.0,0.00037957,120]
[394776152,1763937039060,-204.09683482,0.00038356,2]
[394776153,1763937039069,-150.0,0.00038356,5]
[394776156,1763937039079,-1000.0,0.0003844,3]
[394776158,1763937039091,-190.13197896,0.00038526,14]
[394776159,1763937039101,-1651.466,0.00038528,52]
[394776161,1763937039111,-156.17,0.00038528,52]
[394776163,1763937039121,-500.0,0.00038529,8]
[394776165,1763937039131,-500.0,0.00038529,8]
[394776168,1763937039140,-500.0,0.00038529,8]
[394776169,1763937039150,-500.0,0.00038529,8]
[394776171,1763937039160,-500.0,0.00038529,8]
[394776174,1763937039172,-500.0,0.00038529,8]
[394776175,1763937039181,-103.35097802,0.00038529,8]
[394776178,1763937039194,-396.64902198,0.00038529,8]
[394776180,1763937039203,-13.23024353,0.00038529,8]
[394776182,1763937039215,-486.76975647,0.00038529,8]
[394776184,1763937039225,-500.0,0.00038529,8]
[394776186,1763937039236,-304.82109239,0.00038529,8]
[394776189,1763937039254,-195.17890761,0.00038529,8]
[394776191,1763937039263,-500.0,0.00038529,8]
[394776193,1763937039273,-500.0,0.00038529,8]
[394776195,1763937039282,-500.0,0.00038529,8]
[394776197,1763937039291,-500.0,0.00038529,8]
[394776199,1763937039300,-199.0,0.00038529,7]
[394776201,1763937039309,-500.0,0.00038529,8]
[394776203,1763937039318,-500.0,0.00038529,8]
[394776205,1763937039327,-454.78669288,0.00038529,8]
[394776207,1763937039336,-500.0,0.00038529,8]
[394776209,1763937039345,-500.0,0.00038529,8]
[394776211,1763937039355,-500.0,0.00038529,8]
[394776213,1763937039366,-500.0,0.00038529,8]
[394776215,1763937039375,-564.49,0.00038529,30]
[394776217,1763937039384,-271.79930938,0.00038529,8]
[394776219,1763937039394,-418.67306161,0.00038529,8]
[394776222,1763937039405,-81.32693839,0.00038529,8]
[394776224,1763937039414,-422.7252077,0.00038529,8]
[394776226,1763937039423,-500.0,0.00038529,8]
[394776228,1763937039432,-500.0,0.00038529,8]
[394776230,1763937039441,-500.0,0.00038529,8]
[394776232,1763937039451,-500.0,0.00038529,8]
[394776234,1763937039460,-500.0,0.00038529,8]
[394776235,1763937039469,-500.0,0.00038529,8]
[394776237,1763937039478,-137.3404429,0.00038529,8]
[394776276,1763937039824,-362.6595571,0.00038529,8]
[394776279,1763937039835,-193.80583126,0.00038529,2]
[394776281,1763937039844,-500.0,0.00038529,8]
[394776283,1763937039853,-500.0,0.00038529,8]
[394776285,1763937039863,-500.0,0.00038529,8]
[394776287,1763937039872,-500.0,0.00038529,8]
[394776289,1763937039882,-500.0,0.00038529,8]
[394776291,1763937039892,-500.0,0.00038529,8]
[394776293,1763937039901,-500.0,0.00038529,8]
[394776295,1763937039911,-500.0,0.00038529,8]
[394776297,1763937039920,-500.0,0.00038529,8]
[394776299,1763937039929,-500.0,0.00038529,8]
[394776301,1763937039938,-500.0,0.00038529,8]
[394776303,1763937039948,-500.0,0.00038529,8]
[394776305,1763937039957,-500.0,0.00038529,8]
[394776307,1763937039966,-500.0,0.00038529,8]
[394776309,1763937039975,-500.0,0.00038529,8]
[394776311,1763937039984,-415.9402546,0.00038529,8]
[394776313,1763937039993,-500.0,0.00038529,8]
[394776315,1763937040002,-500.0,0.00038529,8]
[394776317,1763937040010,-500.0,0.00038529,8]
[394776319,1763937040019,-500.0,0.00038529,8]
[394776321,1763937040028,-170.04306777,0.00038529,8]
[394776323,1763937040037,-415.96104211,0.00038529,8]
[394776325,1763937040046,-500.0,0.00038529,8]
[394776327,1763937040056,-500.0,0.00038529,8]
[394776329,1763937040065,-500.0,0.00038529,8]
[394776331,1763937040074,-500.0,0.00038529,8]
[394776333,1763937040085,-560.52668661,0.00038529,8]
[394776335,1763937040096,-500.0,0.00038529,8]
[394776337,1763937040105,-500.0,0.00038529,8]
[394776339,1763937040115,-500.0,0.00038529,8]
[394776341,1763937040124,-500.0,0.00038529,8]
[394776343,1763937040134,-500.0,0.00038529,8]
[394776345,1763937040143,-500.0,0.00038529,8]
[394776347,1763937040152,-500.0,0.00038529,8]
[394776349,1763937040162,-500.0,0.00038529,8]
[394776351,1763937040172,-500.0,0.00038529,8]
[394776352,1763937040182,-593.62445058,0.00038529,8]
[394776354,1763937040191,-500.0,0.00038529,8]
[394776356,1763937040200,-555.33053711,0.00038529,8]
[394776358,1763937040209,-500.0,0.00038529,8]
[394776360,1763937040217,-410.34553415,0.00038529,8]
[394776362,1763937040227,-1000.0,0.00038529,3]
[394776364,1763937040236,-500.0,0.00038529,8]
[394776367,1763937040245,-500.0,0.00038529,8]
[394776369,1763937040255,-500.0,0.00038529,8]
[394776370,1763937040263,-500.0,0.00038529,8]
[394776373,1763937040273,-573.42288102,0.00038529,8]
[394776375,1763937040282,-1218.45664031,0.00038532,30]
[394776377,1763937040291,-426.78462315,0.00038633,10]
[394776379,1763937040300,-500.0,0.000387,120]
[394776381,1763937040308,-500.0,0.000387,120]
[394776382,1763937040321,-500.0,0.000387,120]
[394776385,1763937040330,-500.0,0.000387,120]
[394776386,1763937040339,-500.0,0.000387,120]
[394776389,1763937040349,-500.0,0.000387,120]
[394776391,1763937040358,-500.0,0.000387,120]
[394776392,1763937040367,-500.0,0.000387,120]
[394776394,1763937040376,-500.0,0.000387,120]
[394776396,1763937040385,-500.0,0.000387,120]
[394776398,1763937040395,-500.0,0.000387,120]
[394776399,1763937040404,-500.0,0.000387,120]
[394776400,1763937040413,-500.0,0.000387,120]
[394776401,1763937040422,-500.0,0.000387,120]
[394776402,1763937040431,-500.0,0.000387,120]
[394776403,1763937040440,-500.0,0.000387,120]
[394776404,1763937040450,-500.0,0.000387,120]
[394776405,1763937040459,-500.0,0.000387,120]
[394776406,1763937040468,-500.0,0.000387,120]
[394776407,1763937040477,-500.0,0.000387,120]
[394776408,1763937040486,-500.0,0.000387,120]
[394776409,1763937040495,-500.0,0.000387,120]
[394776410,1763937040505,-500.0,0.000387,120]
[394776411,1763937040514,-500.0,0.000387,120]
[394776412,1763937040523,-1100.0,0.000387,2]
[394776413,1763937040532,-426.78462315,0.000387,120]
[394776414,1763937040541,-161.23270048,0.00038703,2]
[394776415,1763937040550,-1100.0,0.00038761,2]
[394776416,1763937040560,-500.0,0.00038803,8]
[394776417,1763937040569,-173.94,0.00038803,8]
[394776418,1763937040578,-500.0,0.00038803,8]
[394776419,1763937040587,-500.0,0.00038803,8]
[394776420,1763937040596,-500.0,0.00038803,8]
[394776421,1763937040606,-500.0,0.00038803,8]
[394776422,1763937040615,-564.49,0.00038803,30]
[394776423,1763937040625,-500.0,0.00038803,8]
[394776424,1763937040634,-500.0,0.00038803,8]
[394776425,1763937040643,-500.0,0.00038803,8]
[394776426,1763937040652,-500.0,0.00038803,8]
[394776427,1763937040662,-299.55397492,0.00038803,8]
[394776428,1763937040671,-500.0,0.00038803,8]
[394776429,1763937040680,-500.0,0.00038803,8]
[394776430,1763937040689,-500.0,0.00038803,8]
[394776431,1763937040698,-500.0,0.00038803,8]
[394776432,1763937040707,-500.0,0.00038803,8]
[394776433,1763937040717,-500.0,0.00038803,8]
[394776434,1763937040726,-612.91383717,0.00038803,8]
[394776435,1763937040735,-500.0,0.00038803,8]
[394776436,1763937040745,-500.0,0.00038803,8]
[394776437,1763937040754,-500.0,0.00038803,8]
[394776438,1763937040763,-500.0,0.00038803,8]
[394776439,1763937040771,-500.0,0.00038803,8]
[394776440,1763937040781,-500.0,0.00038803,8]
[394776442,1763937040790,-500.0,0.00038803,8]
[394776443,1763937040799,-500.0,0.00038803,8]
[394776444,1763937040808,-500.0,0.00038803,8]
[394776445,1763937040817,-500.0,0.00038803,8]
[394776446,1763937040827,-500.0,0.00038803,8]
[394776447,1763937040836,-500.0,0.00038803,8]
[394776448,1763937040845,-500.0,0.00038803,8]
[394776449,1763937040855,-500.0,0.00038803,8]
[394776450,1763937040866,-500.0,0.00038803,8]
[394776451,1763937040875,-1100.0,0.00038861,2]
[394776452,1763937040885,-1100.0,0.00038861,3]
[394776453,1763937040894,-206.32,0.000389,14]
[394776454,1763937040903,-161.23270046,0.00038947,2]
[394776455,1763937040913,-1100.0,0.00038961,2]
[394776456,1763937040922,-1000.0,0.00038961,2]
[394776457,1763937040931,-2500.0,0.00038961,2]
[394776458,1763937040940,-8768.9973902,0.00039,4]
[394776459,1763937040950,-150.55,0.0003905,2]
[394776460,1763937040959,-150.55,0.00039051,2]
[394776461,1763937040968,-150.55,0.00039051,2]
[394776462,1763937040977,-150.55,0.00039051,2]
[394776463,1763937040987,-150.55,0.00039051,2]
[394776464,1763937041004,-150.55,0.00039051,2]
[394776465,1763937041013,-150.55,0.00039051,2]
[394776466,1763937041022,-500.0,0.0003906,8]
[394776467,1763937041031,-500.0,0.0003906,8]
[394776468,1763937041040,-500.0,0.0003906,8]
[394776469,1763937041049,-500.0,0.0003906,8]
[394776470,1763937041058,-500.0,0.0003906,8]
[394776471,1763937041067,-500.0,0.0003906,8]
[394776472,1763937041076,-500.0,0.0003906,8]
[394776473,1763937041085,-500.0,0.0003906,8]
[394776474,1763937041098,-500.0,0.0003906,8]
[394776475,1763937041108,-500.0,0.0003906,2]
[394776476,1763937041117,-500.0,0.0003906,8]
[394776477,1763937041126,-500.0,0.0003906,8]
[394776478,1763937041135,-1000.0,0.0003906,8]
[394776479,1763937041144,-500.0,0.0003906,8]
[394776480,1763937041153,-303.8790726,0.0003906,8]
[394776481,1763937041163,-500.0,0.0003906,8]
[394776482,1763937041173,-500.0,0.0003906,8]
[394776483,1763937041182,-500.0,0.0003906,8]
[394776484,1763937041192,-500.0,0.0003906,8]
[394776485,1763937041200,-500.0,0.0003906,8]
[394776486,1763937041210,-500.0,0.0003906,8]
[394776487,1763937041219,-333.5376687,0.0003906,8]
[394776488,1763937041228,-500.0,0.0003906,8]
[394776489,1763937041237,-500.0,0.0003906,8]
[394776490,1763937041247,-500.0,0.0003906,8]
[394776491,1763937041256,-500.0,0.0003906,8]
[394776492,1763937041265,-500.0,0.0003906,8]
[394776493,1763937041274,-500.0,0.0003906,2]
[394776494,1763937041283,-500.0,0.0003906,8]
[394776495,1763937041292,-500.0,0.0003906,8]
[394776496,1763937041301,-500.0,0.0003906,8]
[394776497,1763937041310,-500.0,0.0003906,8]
[394776498,1763937041319,-500.0,0.0003906,8]
[394776499,1763937041328,-500.0,0.0003906,8]
[394776500,1763937041337,-500.0,0.0003906,8]
[394776501,1763937041346,-500.0,0.0003906,8]
[394776502,1763937041357,-500.0,0.0003906,8]
[394776503,1763937041366,-500.0,0.0003906,8]
[394776504,1763937041375,-500.0,0.0003906,8]
[394776505,1763937041384,-500.0,0.0003906,8]
[394776506,1763937041393,-500.0,0.0003906,8]
[394776507,1763937041402,-500.0,0.0003906,8]
[394776508,1763937041411,-500.0,0.0003906,8]
[394776509,1763937041420,-500.0,0.0003906,8]
[394776510,1763937041430,-500.0,0.0003906,8]
[394776511,1763937041439,-151.0,0.0003906,120]
[394776512,1763937041448,-500.0,0.0003906,8]
[394776513,1763937041457,-313.49739779,0.0003906,8]
[394776514,1763937041466,-500.0,0.0003906,8]
[394776515,1763937041475,-500.0,0.0003906,8]
[394776516,1763937041484,-500.0,0.0003906,2]
[394776517,1763937041493,-500.0,0.0003906,2]
[394776518,1763937041502,-500.0,0.0003906,8]
[394776519,1763937041511,-500.0,0.0003906,2]
[394776520,1763937041521,-500.0,0.0003906,8]
[394776521,1763937041530,-500.0,0.0003906,8]
[394776522,1763937041539,-500.0,0.0003906,8]
[394776523,1763937041548,-500.0,0.0003906,8]
[394776524,1763937041558,-500.0,0.0003906,8]
[394776525,1763937041567,-500.0,0.0003906,8]
[394776526,1763937041576,-500.0,0.0003906,8]
[394776527,1763937041586,-500.0,0.0003906,8]
[394776528,1763937041595,-500.0,0.0003906,8]
[394776529,1763937041605,-500.0,0.0003906,8]
[394776530,1763937041614,-500.0,0.0003906,8]
[394776531,1763937041623,-500.0,0.0003906,8]
[394776532,1763937041632,-500.0,0.0003906,8]
[394776533,1763937041641,-500.0,0.0003906,8]
[394776534,1763937041651,-500.0,0.0003906,8]
[394776535,1763937041659,-500.0,0.0003906,8]
[394776536,1763937041668,-500.0,0.0003906,8]
[394776537,1763937041678,-1507.1,0.0003906,8]
[394776538,1763937041687,-500.0,0.0003906,8]
[394776539,1763937041696,-500.0,0.0003906,8]
[394776540,1763937041705,-500.0,0.0003906,8]
[394776541,1763937041714,-500.0,0.0003906,8]
[394776542,1763937041723,-500.0,0.0003906,8]
[394776543,1763937041732,-500.0,0.0003906,8]
[394776544,1763937041742,-500.0,0.0003906,8]
[394776545,1763937041751,-500.0,0.0003906,8]
[394776546,1763937041760,-500.0,0.0003906,8]
[394776547,1763937041769,-500.0,0.0003906,8]
[394776548,1763937041779,-500.0,0.0003906,8]
[394776549,1763937041788,-500.0,0.0003906,8]
[394776550,1763937041798,-500.0,0.0003906,8]
[394776551,1763937041808,-500.0,0.0003906,8]
[394776552,1763937041817,-500.0,0.0003906,8]
[394776553,1763937041826,-500.0,0.0003906,8]
[394776554,1763937041835,-500.0,0.0003906,8]
[394776555,1763937041844,-500.0,0.0003906,8]
[394776556,1763937041854,-500.0,0.0003906,8]
[394776557,1763937041863,-500.0,0.0003906,8]
[394776558,1763937041873,-604.67,0.0003906,8]
[394776559,1763937041882,-500.0,0.0003906,8]
[394776560,1763937041891,-500.0,0.0003906,8]
[394776561,1763937041900,-500.0,0.0003906,8]
[394776562,1763937041909,-500.0,0.0003906,8]
[394776563,1763937041919,-29427.44441152,0.00039061,21]
[394776564,1763937041928,-1100.0,0.00039061,2]
[394776565,1763937041938,-277.335366,0.00039061,120]
[394776566,1763937041947,-151.0,0.00039061,120]
[394776567,1763937041956,-151.0,0.00039061,120]
[394776568,1763937041965,-151.0,0.00039061,120]
[394776569,1763937041975,-151.0,0.00039061,120]
[394776570,1763937041985,-151.0,0.00039061,120]
[394776571,1763937041995,-151.0,0.00039061,120]
[394776578,1763937042155,-760000.0,0.00039061,2]
[394776579,1763937042165,-500.0,0.00039077,8]
[394776580,1763937042176,-564.49,0.00039077,30]
[394776581,1763937042186,-500.0,0.00039077,8]
[394776582,1763937042195,-555.05270008,0.00039077,8]
[394776583,1763937042204,-457.35332158,0.00039077,8]
[394776584,1763937042215,-516.49607167,0.00039077,8]
[394776585,1763937042225,-500.0,0.00039077,8]
[394776586,1763937042234,-505.10562695,0.00039077,8]
[394776587,1763937042244,-500.0,0.00039077,8]
[394776588,1763937042254,-629.19388709,0.00039077,8]
[394776589,1763937042264,-500.0,0.00039077,8]
[394776590,1763937042273,-500.0,0.00039077,8]
[394776591,1763937042282,-500.0,0.00039077,8]
[394776592,1763937042291,-274.17764043,0.00039077,8]
[394776594,1763937042301,-500.0,0.00039077,8]
[394776596,1763937042310,-500.0,0.00039077,8]
[394776598,1763937042320,-500.0,0.00039077,8]
[394776600,1763937042329,-500.0,0.00039077,8]
[394776602,1763937042338,-500.0,0.00039077,8]
[394776604,1763937042347,-500.0,0.00039077,8]
[394776606,1763937042357,-500.0,0.00039077,8]
[394776608,1763937042368,-500.0,0.00039077,8]
[394776610,1763937042377,-156.24154383,0.00039151,8]
[394776612,1763937042387,-1100.0,0.00039161,2]
[394776614,1763937042396,-1100.0,0.00039161,3]
[394776616,1763937042406,-600.0,0.00039178,30]
[394776618,1763937042415,-161.23270046,0.00039191,2]
[394776620,1763937042425,-1100.0,0.00039261,2]
[394776622,1763937042434,-500.0,0.00039334,8]
[394776624,1763937042443,-245.39654598,0.00039334,8]
[394776626,1763937042453,-500.0,0.00039334,8]
[394776628,1763937042462,-1000.0,0.00039334,8]
[394776630,1763937042471,-500.0,0.00039334,8]